bitfinex/quotes_ETHUSD_20250324
["timestamp","ask_amount","ask_price","bid_price","bid_amount"]
[1742787548793,0.15469915,2013.8,2013.6,4.9662]
[1742787549106,0.15469915,2013.8,2013.5,32.41931]
[1742787549313,5.12055915,2013.8,2013.5,27.453]
[1742787549500,9.30663117,2013.8,2013.5,27.453]
[1742787549810,9.15229202,2013.6,2013.5,27.453]
[1742787550187,9.30709658,2013.6,2013.5,27.453]
[1742787550585,4.34087658,2013.6,2013.5,27.453]
[1742787550781,0.15480456,2013.6,2013.5,27.453]
[1742787551107,5.7204,2013.7,2013.5,27.453]
[1742787551108,10.68658,2013.7,2013.5,27.453]
[1742787551298,0.15480456,2013.6,2013.5,27.453]
[1742787551475,5.7204,2013.7,2013.5,27.453]
[1742787551680,0.15480456,2013.6,2013.5,27.453]
[1742787551877,10.68661,2013.7,2013.5,27.453]
[1742787552073,0.15480456,2013.6,2013.5,27.453]
[1742787552278,10.68661,2013.7,2013.5,27.453]
[1742787552478,5.12102456,2013.6,2013.5,27.453]
[1742787552675,9.30709658,2013.6,2013.2,0.7708]
[1742787552879,4.96656,2013.5,2013.1,4.863]
[1742787553081,4.18607202,2013.4,2013.0,33.97014189]
[1742787553279,0.15401371,2013.3,2013.0,33.97014189]
[1742787553480,9.15282202,2013.4,2013.0,33.97014189]
[1742787553701,0.15401371,2013.3,2013.0,33.97014189]
[1742787553905,4.96746,2013.1,2013.0,28.23164189]
[1742787554105,0.15353915,2013.1,2013.0,0.77164189]
[1742787554288,9.15342202,2013.2,2012.7,6.461288]
[1742787554289,14.12082202,2013.2,2012.7,6.461288]
[1742787554490,0.15353915,2013.1,2012.7,4.96826]
[1742787554690,9.15342202,2013.2,2012.8,4.96817]
[1742787554886,9.15342202,2013.2,2012.8,9.93627]
[1742787554887,0.15353915,2013.1,2012.8,9.93627]
[1742787555091,8.72127,2013.3,2012.8,4.9682]
[1742787555292,0.15353915,2013.2,2012.8,4.9682]
[1742787555513,0.15353915,2013.2,2012.9,4.96781]
[1742787556615,5.72242,2012.9,2012.6,27.461]
[1742787556783,4.18607202,2012.7,2012.6,27.461]
[1742787556987,9.15452202,2012.7,2012.6,27.461]
[1742787557189,9.29043583,2012.7,2012.6,27.461]
[1742787557389,4.32198583,2012.7,2012.6,27.461]
[1742787558718,9.29043583,2012.7,2012.6,27.461]
[1742787559221,4.32198583,2012.7,2012.6,27.461]
[1742787560720,0.13591381,2012.7,2012.6,32.42969]
[1742787561014,7.96773,2013.0,2012.6,27.461]
[1742787561196,0.13454041,2012.7,2012.6,27.461]
[1742787561393,4.18607202,2012.9,2012.6,27.461]
[1742787561618,0.13454041,2012.7,2012.6,27.461]
[1742787561821,4.18607202,2012.9,2012.6,36.246591]
[1742787561998,0.13318984,2012.7,2012.6,32.42965]
[1742787562199,4.9684,2012.8,2012.6,27.461]
[1742787562387,0.13318984,2012.7,2012.6,27.461]
[1742787562587,5.10163984,2012.7,2012.6,27.461]
[1742787564028,0.13318984,2012.7,2012.6,27.461]
[1742787564391,0.13318984,2012.7,2012.4,4.96909]
[1742787564628,0.13318984,2012.7,2012.4,6.043127]
[1742787565031,0.13318984,2012.7,2012.4,1.074037]
[1742787565320,0.13318984,2012.7,2012.3,5.77121]
[1742787565522,0.13318984,2012.7,2012.4,4.96908]
[1742787566435,0.13318984,2012.7,2012.6,4.96869]
[1742787566918,0.13318984,2012.7,2012.6,5.77059]
[1742787567123,7.18607202,2013.0,2012.6,5.77059]
[1742787567297,0.13318984,2012.9,2012.7,4.96843]
[1742787567493,0.13318984,2012.9,2012.8,4.9682]
[1742787567830,4.18607202,2013.1,2012.8,4.96796]
[1742787568034,0.13229169,2012.9,2012.8,4.96796]
[1742787568209,4.18607202,2013.1,2012.7,6.042222]
[1742787568402,0.13229169,2012.9,2012.7,6.042222]
[1742787568619,3.0,2013.0,2012.7,6.042222]
[1742787568802,0.13271437,2012.8,2012.7,6.042222]
[1742787569025,3.0,2013.0,2012.7,6.042222]
[1742787569638,0.13352951,2012.9,2012.7,11.010482]
[1742787570124,0.13352951,2012.9,2012.7,6.042162]
[1742787570434,0.13352951,2012.9,2012.8,4.9682]
[1742787570594,0.13352951,2012.9,2012.8,6.1494262]
[1742787570794,4.18607202,2013.3,2013.0,0.8019]
[1742787570989,4.18607202,2013.1,2012.8,5.76986]
[1742787571211,4.9682,2012.8,2012.4,7.264198]
[1742787571424,4.18607202,2012.7,2012.4,0.8019]
[1742787571746,0.13352951,2012.6,2012.4,0.8019]
[1742787571907,0.13352951,2012.6,2012.3,32.43931]
[1742787572224,9.15454202,2012.7,2012.3,36.746698]
[1742787572413,0.13352951,2012.5,2012.3,36.746698]
[1742787572613,9.15454202,2012.7,2012.3,36.746698]
[1742787572813,0.13352951,2012.4,2012.3,36.746698]
[1742787573015,9.15454202,2012.7,2012.3,36.746698]
[1742787573216,0.13352951,2012.4,2012.3,36.746698]
[1742787573725,3.7939,2012.8,2012.4,4.9691]
[1742787573930,0.13352951,2012.7,2012.4,4.9691]
[1742787574126,5.10204951,2012.7,2012.3,36.746698]
[1742787574643,4.9687,2012.6,2012.3,27.47]
[1742787574934,4.96847,2012.7,2012.3,32.43934]
[1742787575138,0.13352951,2012.6,2012.3,32.43934]
[1742787575306,5.10222951,2012.6,2012.3,27.47]
[1742787575506,0.13352951,2012.6,2012.3,27.47]
[1742787575698,4.96851,2012.7,2012.3,32.43932]
[1742787575903,0.13352951,2012.6,2012.3,32.43932]
[1742787576103,4.96851,2012.7,2012.3,32.43932]
[1742787576332,0.13352951,2012.6,2012.3,32.43932]
[1742787576633,4.96851,2012.7,2012.3,32.43932]
[1742787576839,0.13352951,2012.5,2012.3,32.43932]
[1742787577136,12.94820202,2012.8,2012.4,4.96907]
[1742787577514,7.18607202,2012.8,2012.5,4.96877]
[1742787577716,3.0,2013.0,2012.6,5.74129]
[1742787577935,9.15359202,2013.1,2012.7,4.96835]
[1742787578109,4.18607202,2012.9,2012.6,5.74144]
[1742787578311,9.15403202,2012.9,2012.6,1.843837]
[1742787578606,9.15403202,2012.9,2012.6,6.812527]
[1742787578607,4.18607202,2012.9,2012.6,6.812527]
[1742787580857,4.18607202,2012.9,2012.6,5.74149]
[1742787581171,9.15408202,2012.9,2012.6,0.7728]
[1742787581368,4.18607202,2012.7,2012.4,4.96917]
[1742787581861,4.18607202,2012.7,2012.3,27.47]
[1742787581862,4.96919,2012.4,2012.3,27.47]
[1742787582039,4.96846,2012.7,2012.3,27.47]
[1742787582245,3.0,2012.5,2012.3,27.47]
[1742787582456,7.96904,2012.5,2012.3,27.47]
[1742787582837,9.15526202,2012.4,2012.3,27.47]
[1742787586657,9.15526202,2012.4,2012.2,0.97882188]
[1742787586861,9.2862552,2012.4,2012.2,0.97882188]
[1742787587763,14.2556352,2012.4,2012.2,0.97882188]
[1742787588065,9.2862552,2012.4,2012.2,0.97882188]
[1742787589571,0.13099318,2012.4,2012.2,0.97882188]
[1742787589770,0.13099318,2012.4,2012.2,2.15295768]
[1742787589957,0.13099318,2012.4,2012.2,4.96951]
[1742787590148,0.13099318,2012.4,2012.3,4.96943]
[1742787590350,0.13099318,2012.4,2012.3,5.79693]
[1742787590537,7.96852,2012.7,2012.3,5.79693]
[1742787590740,9.28310753,2012.6,2012.3,0.8275]
[1742787591875,4.31431753,2012.6,2012.3,5.79691]
[1742787592167,0.12824551,2012.6,2012.4,4.96901]
[1742787592564,3.0,2012.7,2012.4,4.96901]
[1742787592762,0.12824551,2012.5,2012.4,4.96901]
[1742787592959,7.96846,2012.7,2012.4,4.96901]
[1742787593144,0.12824551,2012.5,2012.4,4.96901]
[1742787593343,7.96846,2012.7,2012.4,4.96901]
[1742787593544,0.12914395,2012.6,2012.4,4.96901]
[1742787593764,7.96846,2012.7,2012.4,4.96901]
[1742787593966,0.12914395,2012.5,2012.4,4.96901]
[1742787594179,7.96846,2012.7,2012.4,4.96901]
[1742787594343,0.12914395,2012.5,2012.4,4.96901]
[1742787594543,3.0,2012.7,2012.4,4.96901]
[1742787594775,0.12914395,2012.6,2012.4,4.96901]
[1742787595076,0.12914395,2012.6,2012.5,4.96894]
[1742787595274,5.78617,2013.1,2012.7,4.96836]
[1742787595503,3.0,2013.0,2012.7,4.96836]
[1742787595673,3.11972059,2013.0,2012.6,4.96869]
[1742787595878,8.08752059,2013.0,2012.6,4.96869]
[1742787596280,8.08752059,2013.0,2012.7,4.96842]
[1742787596872,8.08752059,2013.0,2012.6,4.96864]
[1742787597078,4.96797,2012.9,2012.6,4.96864]
[1742787597462,7.96778,2013.0,2012.6,4.96864]
[1742787597668,0.1210428,2012.8,2012.6,4.96864]
[1742787597857,4.18607202,2012.9,2012.6,4.96864]
[1742787598047,0.1210428,2012.7,2012.6,4.96864]
[1742787598246,9.15407202,2012.9,2012.6,4.96864]
[1742787598445,0.1210428,2012.7,2012.6,4.96864]
[1742787598643,9.15407202,2012.9,2012.6,4.96864]
[1742787598843,0.1210428,2012.7,2012.6,4.96864]
[1742787599047,4.96821,2012.8,2012.5,28.284]
[1742787599343,0.1210428,2012.7,2012.5,27.477]
[1742787599779,0.1210428,2012.7,2012.5,32.44594]
[1742787600075,0.1210428,2012.7,2012.5,27.477]
[1742787600752,0.1210428,2012.7,2012.5,32.44592]
[1742787600953,0.1210428,2012.7,2012.4,4.96902]
[1742787601153,0.1210428,2012.7,2012.4,6.53615202]
[1742787601479,0.1210428,2012.7,2012.4,11.50515202]
[1742787601655,0.1210428,2012.7,2012.4,6.53613202]
[1742787601861,0.1210428,2012.7,2012.4,11.50516202]
[1742787602160,0.1210428,2012.7,2012.4,4.969]
[1742787602483,5.0895328,2012.7,2012.4,4.969]
[1742787603183,0.1210428,2012.7,2012.4,4.969]
[1742787603552,0.1210428,2012.7,2012.5,4.96884]
[1742787603773,9.15404202,2012.9,2012.5,4.96884]
[1742787603981,0.1210428,2012.6,2012.5,4.96884]
[1742787604186,4.18607202,2012.7,2012.3,37.076677]
[1742787604351,0.1210428,2012.6,2012.3,37.076677]
[1742787604551,9.15461202,2012.7,2012.5,0.97161115]
[1742787604769,0.1210428,2012.6,2012.5,0.97161115]
[1742787605180,9.15461202,2012.7,2012.5,0.97161115]
[1742787605369,0.1210428,2012.6,2012.5,0.97161115]
[1742787606382,9.15461202,2012.7,2012.5,0.97161115]
[1742787606584,0.1210428,2012.6,2012.5,0.97161115]
[1742787607080,9.15461202,2012.7,2012.5,0.97161115]
[1742787607381,0.1210428,2012.6,2012.5,0.97161115]
[1742787607684,0.1210428,2012.6,2012.5,5.94055115]
[1742787607880,4.18607202,2012.7,2012.5,0.97161115]
[1742787608085,0.12141305,2012.6,2012.5,0.97161115]
[1742787608457,4.18607202,2012.7,2012.5,0.97161115]
[1742787608751,0.12141305,2012.6,2012.5,0.97161115]
[1742787608986,4.18607202,2012.7,2012.5,0.97161115]
[1742787609181,0.12141305,2012.6,2012.5,0.97161115]
[1742787609552,4.18607202,2012.7,2012.5,5.94055115]
[1742787609755,0.12141305,2012.6,2012.5,0.97161115]
[1742787609987,14.12326202,2012.7,2012.5,0.97161115]
[1742787610181,0.12141305,2012.6,2012.5,0.97161115]
[1742787610585,9.93262202,2012.7,2012.5,0.97161115]
[1742787610787,0.12141305,2012.6,2012.5,0.97161115]
[1742787611259,9.93253202,2012.7,2012.5,0.97161115]
[1742787611458,0.12141305,2012.6,2012.5,0.97161115]
[1742787611872,4.18607202,2012.7,2012.5,0.97161115]
[1742787612077,0.12141305,2012.6,2012.5,0.97161115]
[1742787612389,9.15454202,2012.7,2012.5,0.97161115]
[1742787612591,0.12141305,2012.6,2012.5,0.97161115]
[1742787612998,9.15454202,2012.7,2012.5,0.97161115]
[1742787613192,0.12141305,2012.6,2012.5,0.97161115]
[1742787613661,9.15454202,2012.7,2012.5,0.97161115]
[1742787613862,0.12141305,2012.6,2012.5,0.97161115]
[1742787614573,9.15454202,2012.7,2012.5,0.97161115]
[1742787614775,0.12141305,2012.6,2012.5,0.97161115]
[1742787615071,0.12141305,2012.6,2012.5,7.95844021]
[1742787615296,3.0,2013.0,2012.7,4.96821]
[1742787615513,9.15336202,2013.2,2012.8,4.96819]
[1742787615666,0.12141305,2012.9,2012.8,4.96819]
[1742787616181,4.18607202,2013.4,2012.9,0.8208]
[1742787616501,9.15290202,2013.4,2013.0,4.9675]
[1742787616699,0.12141305,2013.3,2013.0,4.9675]
[1742787616906,9.15290202,2013.4,2013.0,4.9675]
[1742787617107,0.12141305,2013.3,2013.1,4.96745]
[1742787617307,4.18607202,2013.4,2013.1,4.96733]
[1742787617496,0.12141305,2013.3,2013.2,4.96716]
[1742787617697,0.12141305,2013.3,2013.2,5.78796]
[1742787618018,0.12141305,2013.3,2013.2,10.75512]
[1742787618314,14.79019202,2013.7,2013.3,4.96679]
[1742787618486,14.79019202,2013.7,2013.3,8.85245317]
[1742787618820,4.18607202,2014.1,2013.5,0.8208]
[1742787619024,9.15205202,2013.7,2013.4,4.86]
[1742787619177,9.15208202,2013.7,2013.4,4.86]
[1742787619511,4.18607202,2013.5,2013.1,27.473]
[1742787619675,9.93128202,2013.2,2012.8,0.77164189]
[1742787619880,9.15380202,2013.0,2012.8,0.77164189]
[1742787620078,9.15380202,2013.0,2012.6,11.52943189]
[1742787620307,4.18607202,2013.0,2012.7,4.96828]
[1742787620478,4.18607202,2013.0,2012.7,9.9366]
[1742787620678,4.859,2013.4,2012.8,4.96804]
[1742787620679,4.97197202,2013.4,2012.8,4.96804]
[1742787620910,3.0,2013.5,2013.2,4.9672]
[1742787621209,5.74248,2013.8,2013.4,4.96658]
[1742787621411,9.92855202,2013.8,2013.4,4.96658]
[1742787621712,4.96277202,2013.8,2013.5,4.96637]
[1742787621885,9.15131202,2014.0,2013.5,4.96637]
[1742787622086,9.15180202,2013.8,2013.5,4.96637]
[1742787622286,4.18607202,2013.8,2013.5,4.96635]
[1742787622499,4.18607202,2013.8,2013.6,5.63821704]
[1742787623426,4.18607202,2013.8,2013.6,0.67205704]
[1742787623591,5.74135,2014.3,2013.8,4.96553]
[1742787623910,3.0,2014.1,2013.7,10.57981]
[1742787624092,7.96508,2014.1,2013.7,10.57981]
[1742787625420,3.0,2014.1,2013.7,7.2356977]
[1742787625623,3.0,2014.1,2013.9,4.96547]
[1742787625917,3.0,2014.1,2013.8,4.96554]
[1742787626416,3.0,2014.1,2013.8,9.93117]
[1742787626607,3.0,2014.1,2013.8,4.96554]
[1742787626807,3.0,2014.1,2013.8,7.16807468]
[1742787627008,3.0,2014.1,2013.8,12.13371468]
[1742787627187,3.0,2014.1,2013.8,7.16807468]
[1742787627587,3.0,2014.1,2013.8,12.13366468]
[1742787627817,3.0,2014.1,2013.8,7.16807468]
[1742787630433,3.0,2014.2,2013.9,4.96539]
[1742787630631,7.96475,2014.2,2013.8,7.16807468]
[1742787631222,7.96475,2014.2,2013.8,4.96554]
[1742787631590,0.12971215,2014.1,2013.8,4.96554]
[1742787631902,7.96475,2014.2,2013.8,4.96554]
[1742787632209,0.12971215,2014.1,2013.8,4.96554]
[1742787632519,7.96475,2014.2,2013.8,4.96554]
[1742787632721,7.96475,2014.2,2013.8,6.68226477]
[1742787632914,0.12971215,2014.1,2013.8,6.68226477]
[1742787633111,7.96475,2014.2,2013.8,6.68226477]
[1742787633292,0.12971215,2014.1,2013.8,6.68226477]
[1742787633491,7.96475,2014.2,2013.8,6.68226477]
[1742787633814,0.12971215,2014.1,2013.8,6.68226477]
[1742787634232,7.96475,2014.2,2013.8,6.68226477]
[1742787634404,0.12971215,2014.0,2013.8,6.68226477]
[1742787634603,7.96475,2014.2,2013.8,6.68226477]
[1742787635203,0.12971215,2014.1,2013.8,6.68226477]
[1742787635629,7.96475,2014.2,2013.8,6.68226477]
[1742787635816,0.12971215,2014.0,2013.8,6.68226477]
[1742787636005,7.96475,2014.2,2013.8,6.68226477]
[1742787636215,0.12971215,2013.9,2013.8,6.68226477]
[1742787636390,7.96475,2014.2,2013.8,6.68226477]
[1742787636594,0.12971215,2013.9,2013.8,6.68226477]
[1742787636805,7.96475,2014.2,2013.8,6.68226477]
[1742787637026,0.12971215,2013.9,2013.8,6.68226477]
[1742787637228,7.96475,2014.2,2013.8,6.68226477]
[1742787637396,0.12971215,2013.9,2013.8,6.68226477]
[1742787637722,7.96475,2014.2,2013.8,6.68226477]
[1742787637899,0.12971215,2013.9,2013.8,6.68226477]
[1742787638106,7.96475,2014.2,2013.8,6.68226477]
[1742787638606,0.12971215,2014.1,2013.8,6.68226477]
[1742787639027,12.92973,2014.2,2013.8,6.68226477]
[1742787639321,0.12971215,2014.0,2013.8,6.68226477]
[1742787639524,4.96501,2014.1,2013.8,6.68226477]
[1742787639711,0.12971215,2013.9,2013.8,6.68226477]
[1742787639912,4.96501,2014.1,2013.8,6.68226477]
[1742787640124,0.12971215,2013.9,2013.8,6.68226477]
[1742787640323,4.96501,2014.1,2013.8,6.68226477]
[1742787640541,0.12971215,2013.9,2013.8,6.68226477]
[1742787640713,4.96501,2014.1,2013.8,6.68226477]
[1742787641043,4.96501,2014.1,2013.8,4.96554]
[1742787641246,0.13415107,2014.0,2013.8,4.96554]
[1742787642546,0.13415107,2014.0,2013.7,38.03687]
[1742787644019,4.96559,2013.9,2013.7,27.46]
[1742787644402,9.93127,2013.9,2013.7,27.46]
[1742787644627,0.13415107,2013.8,2013.7,27.46]
[1742787644932,4.96663,2013.5,2013.1,38.82756735]
[1742787645107,4.96705,2013.3,2013.1,29.00526735]
[1742787645311,4.96705,2013.3,2013.1,28.22836735]
[1742787645620,5.10056873,2013.2,2013.1,28.22836735]
[1742787645825,5.86466873,2013.2,2013.1,28.22836735]
[1742787646025,5.86466873,2013.2,2013.1,27.458]
[1742787649701,10.05074075,2013.2,2013.1,27.458]
[1742787649905,4.96808,2012.9,2012.5,32.43188]
[1742787650307,0.13156231,2012.8,2012.5,32.4318]
[1742787650507,0.13156231,2012.8,2012.6,4.96859]
[1742787650708,9.15397202,2013.0,2012.6,5.58511729]
[1742787650908,0.13156231,2012.7,2012.6,5.58511729]
[1742787651223,9.15397202,2013.0,2012.6,5.58511729]
[1742787651530,3.0,2013.1,2012.6,0.61652729]
[1742787651733,0.13156231,2012.9,2012.8,4.9682]
[1742787651934,8.74628,2013.5,2013.0,9.93506]
[1742787652122,3.0,2013.5,2013.0,0.04967124]
[1742787652434,3.0,2013.5,2013.2,4.96712]
[1742787652635,3.0,2013.5,2013.2,4.967]
[1742787652839,9.15180202,2013.8,2013.4,4.9667]
[1742787653132,5.74528,2013.9,2013.5,4.96629]
[1742787653339,3.0,2013.8,2013.5,4.96629]
[1742787653540,9.15137202,2014.0,2013.3,27.466]
[1742787653541,4.18607202,2014.0,2013.6,5.73593]
[1742787653738,4.96487,2014.2,2013.8,4.96556]
[1742787654051,3.0,2014.1,2013.8,4.96556]
[1742787654461,7.96501,2014.1,2013.7,4.96584]
[1742787655163,7.96505,2014.1,2013.6,5.73587]
[1742787655663,7.96505,2014.1,2013.7,4.96588]
[1742787655863,3.0,2014.1,2013.7,9.93174]
[1742787656060,0.7797,2014.3,2014.0,4.96524]
[1742787656269,8.74425,2014.3,2013.8,4.96573]
[1742787656423,12.93032202,2014.3,2013.8,4.96573]
[1742787656619,4.96486,2014.2,2013.8,4.96573]
[1742787659153,4.18607202,2014.1,2013.8,4.96573]
[1742787659850,4.18607202,2014.1,2013.8,9.93127]
[1742787660052,17.89500202,2014.3,2013.8,9.93116]
[1742787660359,9.15120202,2014.1,2013.7,9.93174]
[1742787660547,9.15120202,2014.1,2013.7,9.93156]
[1742787660738,4.18607202,2014.1,2013.8,4.96571]
[1742787660938,4.18607202,2014.1,2013.7,4.96578]
[1742787661132,0.13341151,2014.0,2013.7,9.93162]
[1742787661456,0.13341151,2014.0,2013.8,4.96572]
[1742787662960,0.13341151,2014.0,2013.6,5.73601]
[1742787663174,4.18607202,2013.9,2013.6,5.73601]
[1742787663457,0.13372847,2013.8,2013.6,5.73601]
[1742787664357,0.13372847,2013.8,2013.5,4.96647]
[1742787664656,4.96649,2013.5,2013.3,27.466]
[1742787664857,9.15279202,2013.4,2013.3,27.466]
[1742787665051,9.28572804,2013.4,2013.3,27.466]
[1742787666257,12.28572804,2013.4,2013.3,27.466]
[1742787666561,4.96761,2013.1,2012.7,33.19780735]
[1742787666762,4.18607202,2013.0,2012.7,33.19780735]
[1742787666957,4.96804,2012.9,2012.7,28.22936735]
[1742787667158,4.96804,2012.9,2012.7,27.459]
[1742787667346,4.31620711,2012.8,2012.7,27.459]
[1742787668065,0.13013509,2012.8,2012.7,27.459]
[1742787668363,4.96804,2012.9,2012.7,27.459]
[1742787668561,0.13013509,2012.8,2012.7,27.459]
[1742787668931,4.96804,2012.9,2012.7,27.459]
[1742787669143,0.13013509,2012.8,2012.7,27.459]
[1742787669441,4.96804,2012.9,2012.7,27.459]
[1742787669641,0.13013509,2012.8,2012.7,27.459]
[1742787669966,4.96804,2012.9,2012.7,27.459]
[1742787670149,0.13013509,2012.8,2012.7,27.459]
[1742787670465,9.97869202,2013.0,2012.7,27.459]
[1742787670633,0.13013509,2012.8,2012.7,27.459]
[1742787670833,9.97869202,2013.0,2012.7,27.459]
[1742787671033,0.13013509,2012.8,2012.7,27.459]
[1742787671233,4.96804,2012.9,2012.7,27.459]
[1742787671433,9.97869202,2013.0,2012.4,0.7643]
[1742787671434,9.27920628,2012.8,2012.4,0.7643]
[1742787671633,4.18607202,2012.6,2012.2,27.465]
[1742787671865,9.15476202,2012.6,2012.2,36.61688074]
[1742787672232,0.1228409,2012.5,2012.2,36.61688074]
[1742787672660,0.1228409,2012.5,2012.3,5.43269688]
[1742787673965,0.1228409,2012.5,2012.3,0.46331688]
[1742787674329,0.8249,2012.6,2012.3,0.46331688]
[1742787674566,5.79359,2012.6,2012.3,0.46331688]
[1742787674771,0.1228409,2012.5,2012.3,0.46331688]
[1742787675274,0.1228409,2012.5,2012.3,5.43262688]
[1742787675445,9.97922202,2012.8,2012.4,4.96907]
[1742787675645,5.01097202,2012.8,2012.5,4.96874]
[1742787675845,5.01097202,2012.8,2012.4,4.96907]
[1742787675846,9.97922202,2012.8,2012.4,4.96907]
[1742787676040,3.0,2012.9,2012.6,4.96858]
[1742787676367,7.96799,2012.9,2012.5,5.733]
[1742787676677,0.1228409,2012.8,2012.6,4.96867]
[1742787676840,3.0,2012.9,2012.5,7.18187788]
[1742787677040,0.1228409,2012.7,2012.5,2.21296788]
[1742787677253,9.15495202,2012.6,2012.3,0.46287846]
[1742787677455,15.07160292,2012.6,2012.3,0.46287846]
[1742787677634,9.15526202,2012.4,2012.3,0.46287846]
[1742787678037,9.27699231,2012.4,2012.3,0.46287846]
[1742787678438,4.96943,2012.3,2012.2,27.465]
[1742787678735,8.79433,2012.3,2012.2,27.465]
[1742787678938,3.0,2012.3,2012.2,27.465]
[1742787679137,0.12173029,2012.3,2012.2,32.43468]
[1742787679544,9.97872202,2013.0,2012.6,4.96859]
[1742787679866,4.18607202,2012.8,2012.5,4.96875]
[1742787680382,3.0,2012.9,2012.6,4.96854]
[1742787680540,3.0,2012.9,2012.6,4.96852]
[1742787680740,5.01097202,2013.0,2012.7,4.96844]
[1742787681094,8.01097202,2013.0,2012.4,5.6193]
[1742787681245,0.7714,2013.2,2012.9,4.96795]
[1742787681438,9.15393202,2013.0,2012.6,5.786]
[1742787681764,4.18607202,2013.0,2012.6,5.786]
[1742787681939,4.18607202,2013.0,2012.7,4.96843]
[1742787682471,3.0,2013.1,2012.8,4.96816]
[1742787682671,5.73805,2013.5,2013.1,4.96733]
[1742787682837,0.7714,2013.5,2013.2,4.96711]
[1742787683170,3.7714,2013.5,2013.1,4.96742]
[1742787683347,4.18607202,2013.4,2013.1,4.96742]
[1742787686247,4.18607202,2013.6,2013.3,4.96685]
[1742787687673,5.7374,2013.7,2013.3,4.96685]
[1742787687891,4.18607202,2013.6,2013.3,4.96685]
[1742787688393,4.18607202,2013.6,2013.4,4.9667]
[1742787688976,0.7714,2013.7,2013.4,4.9667]
[1742787689168,7.18607202,2013.8,2013.5,4.96647]
[1742787689856,7.18607202,2013.8,2013.4,5.46337]
[1742787690047,12.15192202,2013.8,2013.3,5.78441]
[1742787690249,4.18607202,2013.6,2013.3,4.96691]
[1742787690997,4.18607202,2013.6,2013.4,4.96668]
[1742787691278,12.15181202,2013.8,2013.4,9.93321]
[1742787691651,0.12707035,2013.7,2013.4,9.93321]
[1742787691966,0.12707035,2013.7,2013.5,4.96646]
[1742787692481,0.12707035,2013.7,2013.4,6.445251]
[1742787693174,0.12707035,2013.7,2013.4,4.96653]
[1742787694875,5.09309035,2013.7,2013.3,9.93364]
[1742787695051,4.18607202,2013.6,2013.3,4.96678]
[1742787695250,0.12865602,2013.5,2013.3,4.96678]
[1742787695446,0.12865602,2013.5,2013.2,4.96714]
[1742787695973,5.88482602,2013.5,2013.1,6.325699]
[1742787696469,0.91825602,2013.5,2013.2,9.93425]
[1742787696782,0.12865602,2013.5,2013.2,4.96716]
[1742787696973,5.09512602,2013.5,2013.1,5.74738]
[1742787697352,5.09512602,2013.5,2013.1,4.96738]
[1742787700100,5.09512602,2013.5,2013.1,9.93469]
[1742787700613,5.09512602,2013.5,2013.1,4.96731]
[1742787700895,9.15282202,2013.4,2013.0,32.44068]
[1742787701099,4.96699,2013.3,2013.0,27.473]
[1742787701386,9.15329202,2013.2,2013.0,27.473]
[1742787701588,9.2815252,2013.2,2013.0,27.473]
[1742787702072,14.2489452,2013.2,2013.0,27.473]
[1742787702269,9.2815252,2013.2,2013.0,27.473]
[1742787702464,0.12823318,2013.2,2013.1,4.96746]
[1742787702668,9.15268202,2013.5,2013.1,5.77116]
[1742787702991,0.12627748,2013.2,2013.1,4.96746]
[1742787703191,14.11934202,2013.5,2013.1,4.96746]
[1742787703389,0.12627748,2013.2,2013.1,4.96746]
[1742787703590,14.11934202,2013.5,2013.1,4.96746]
[1742787703792,0.12627748,2013.2,2013.1,4.96746]
[1742787704089,0.12654178,2013.2,2013.1,14.0805155]
[1742787704252,9.15264202,2013.5,2013.2,4.96715]
[1742787704455,0.12659464,2013.4,2013.2,4.96715]
[1742787705167,0.12659464,2013.4,2013.1,9.1129755]
[1742787705490,5.09333464,2013.4,2013.1,4.1455955]
[1742787705692,5.09333464,2013.4,2013.0,40.652225]
[1742787705992,5.09333464,2013.4,2013.0,35.684665]
[1742787706190,9.15304202,2013.3,2013.0,30.717115]
[1742787706495,0.12670036,2013.2,2013.0,27.473]
[1742787707399,5.09408036,2013.2,2013.0,27.473]
[1742787707693,9.15353202,2013.1,2013.0,27.473]
[1742787708100,9.28023238,2013.1,2013.0,27.473]
[1742787708486,0.12670036,2013.1,2013.0,27.473]
[1742787708686,9.94264202,2013.3,2013.0,27.473]
[1742787708887,4.18607202,2013.3,2013.1,4.96725]
[1742787709276,4.18607202,2013.3,2013.0,32.4406]
[1742787709475,4.18607202,2013.3,2013.0,30.79743]
[1742787709693,4.18607202,2013.3,2013.0,35.76505]
[1742787710998,4.18607202,2013.3,2013.1,0.46517178]
[1742787711380,3.0,2013.3,2013.1,0.46517178]
[1742787711965,9.15328202,2013.2,2013.1,0.46517178]
[1742787712399,9.15328202,2013.2,2012.8,32.43517]
[1742787712699,9.93838202,2013.2,2012.8,32.43517]
[1742787712899,4.96752,2013.1,2012.8,32.43517]
[1742787713068,4.96752,2013.1,2012.8,35.93279548]
[1742787713269,9.93838202,2013.2,2012.8,35.93279548]
[1742787713603,4.96747,2013.1,2012.8,30.96462548]
[1742787713786,9.93838202,2013.2,2012.8,30.96462548]
[1742787714096,9.93838202,2013.2,2012.9,0.46535683]
[1742787714672,4.97117202,2013.2,2012.9,5.43323683]
[1742787714870,4.97117202,2013.2,2012.9,4.67945706]
[1742787715071,4.97117202,2013.2,2013.0,0.46535683]
[1742787715396,9.93844202,2013.2,2013.0,0.46535683]
[1742787716414,4.97117202,2013.4,2013.0,5.43282683]
[1742787716716,3.0,2013.3,2013.0,5.43282683]
[1742787716870,3.0,2013.3,2013.0,8.75425268]
[1742787717070,7.96698,2013.3,2013.0,8.75425268]
[1742787717705,3.0,2013.3,2013.0,8.75425268]
[1742787718105,7.96703,2013.3,2013.0,3.78678268]
[1742787718291,7.96703,2013.3,2013.1,0.46524201]
[1742787718607,7.96721,2013.2,2013.1,0.46524201]
[1742787719705,7.96721,2013.2,2012.9,4.96793]
[1742787720304,7.96721,2013.2,2012.8,27.467]
[1742787720305,7.18607202,2013.2,2012.8,27.467]
[1742787720505,9.15386202,2013.0,2012.8,27.467]
[1742787721405,7.96795,2012.9,2012.8,27.467]